fUSD/lending_fUSD_20251227
["ID","MTS","AMOUNT","RATE_DAILY","PERIOD"]
[399902480,1766838650375,-500.0,0.00035616,9]
[399902481,1766838650385,-500.0,0.00035616,9]
[399902482,1766838650394,-500.0,0.00035616,9]
[399902483,1766838650404,-576.61599978,0.00035616,9]
[399902484,1766838650414,-500.0,0.00035616,9]
[399902485,1766838650423,-500.0,0.00035616,9]
[399902486,1766838650433,-500.0,0.00035616,9]
[399902487,1766838650443,-500.0,0.00035616,9]
[399902488,1766838650453,-614.13889452,0.00035616,9]
[399902489,1766838650463,-500.0,0.00035616,9]
[399902490,1766838650473,-500.0,0.00035616,9]
[399902491,1766838650483,-500.0,0.00035616,9]
[399902492,1766838650492,-500.0,0.00035616,9]
[399902493,1766838650502,-500.0,0.00035616,9]
[399902494,1766838650512,-500.0,0.00035616,9]
[399902495,1766838650521,-440.63,0.00035616,9]
[399902496,1766838650532,-500.0,0.00035616,9]
[399902497,1766838650543,-500.0,0.00035616,9]
[399902498,1766838650552,-500.0,0.00035616,9]
[399902499,1766838650561,-500.0,0.00035616,9]
[399902500,1766838650572,-500.0,0.00035616,9]
[399902501,1766838650582,-500.0,0.00035616,9]
[399902502,1766838650591,-500.0,0.00035616,9]
[399902503,1766838650601,-500.0,0.00035616,9]
[399902504,1766838650610,-500.0,0.00035616,9]
[399902505,1766838650619,-500.0,0.00035616,9]
[399902506,1766838650744,-500.0,0.00035616,9]
[399902507,1766838650779,-246.52,0.00035616,9]
[399902508,1766838650789,-500.0,0.00035616,9]
[399902509,1766838650799,-500.0,0.00035616,9]
[399902510,1766838650808,-500.0,0.00035616,9]
[399902511,1766838650817,-500.0,0.00035616,9]
[399902512,1766838650827,-500.0,0.00035616,9]
[399902513,1766838650836,-500.0,0.00035616,9]
[399902514,1766838650846,-500.0,0.00035616,9]
[399902515,1766838650855,-500.0,0.00035616,9]
[399902516,1766838650865,-445.12819831,0.00035616,9]
[399902517,1766838650874,-500.0,0.00035616,9]
[399902518,1766838650883,-500.0,0.00035616,9]
[399902519,1766838650893,-500.0,0.00035616,9]
[399902520,1766838650903,-500.0,0.00035616,9]
[399902521,1766838650912,-744.72,0.00035616,9]
[399902522,1766838650922,-335.09250423,0.00035616,9]
[399902523,1766838650931,-278.29205616,0.00035616,9]
[399902524,1766838650940,-519.19727196,0.00035616,9]
[399902525,1766838650949,-500.0,0.00035616,9]
[399902526,1766838650959,-500.0,0.00035616,9]
[399902527,1766838650968,-500.0,0.00035616,9]
[399902528,1766838650978,-500.0,0.00035616,9]
[399902529,1766838650987,-500.0,0.00035616,9]
[399902530,1766838650996,-500.0,0.00035616,9]
[399902531,1766838651006,-500.0,0.00035616,9]
[399902532,1766838651015,-500.0,0.00035616,9]
[399902533,1766838651025,-500.0,0.00035616,9]
[399902534,1766838651034,-500.0,0.00035616,9]
[399902535,1766838651044,-500.0,0.00035616,9]
[399902536,1766838651053,-225.65,0.00035616,9]
[399902537,1766838651063,-500.0,0.00035616,9]
[399902538,1766838651072,-500.0,0.00035616,9]
[399902539,1766838651081,-500.0,0.00035616,9]
[399902540,1766838651091,-500.0,0.00035616,9]
[399902541,1766838651100,-500.0,0.00035616,9]
[399902542,1766838651117,-500.0,0.00035616,9]
[399902543,1766838651126,-288.76065529,0.00035616,9]
[399902544,1766838651136,-500.0,0.00035616,9]
[399902545,1766838651150,-500.0,0.00035616,9]
[399902546,1766838651163,-500.0,0.00035616,9]
[399902547,1766838651176,-367.97291908,0.00035616,9]
[399902548,1766838651186,-500.0,0.00035616,9]
[399902549,1766838651196,-500.0,0.00035616,9]
[399902550,1766838651207,-500.0,0.00035616,9]
[399902551,1766838651217,-368.61627596,0.00035616,9]
[399902552,1766838651227,-500.0,0.00035616,9]
[399902553,1766838651238,-500.0,0.00035616,9]
[399902554,1766838651248,-500.0,0.00035616,9]
[399902555,1766838651258,-500.0,0.00035616,9]
[399902556,1766838651268,-500.0,0.00035616,9]
[399902557,1766838651278,-500.0,0.00035616,9]
[399902558,1766838651288,-500.0,0.00035616,9]
[399902559,1766838651298,-500.0,0.00035616,9]
[399902560,1766838651307,-500.0,0.00035616,9]
[399902561,1766838651317,-500.0,0.00035616,9]
[399902562,1766838651326,-500.0,0.00035616,9]
[399902563,1766838651336,-500.0,0.00035616,9]
[399902564,1766838651346,-500.0,0.00035616,9]
[399902565,1766838651355,-500.0,0.00035616,9]
[399902566,1766838651365,-151.92,0.00035616,9]
[399902567,1766838651375,-500.0,0.00035616,9]
[399902568,1766838651384,-500.0,0.00035616,9]
[399902569,1766838651394,-500.0,0.00035616,9]
[399902570,1766838651403,-500.0,0.00035616,9]
[399902571,1766838651412,-500.0,0.00035616,9]
[399902572,1766838651422,-593.16312734,0.00035616,9]
[399902573,1766838651431,-500.0,0.00035616,9]
[399902574,1766838651441,-500.0,0.00035616,9]
[399902575,1766838651450,-500.0,0.00035616,9]
[399902576,1766838651459,-374.68940206,0.00035616,9]
[399902577,1766838651469,-500.0,0.00035616,9]
[399902578,1766838651478,-500.0,0.00035616,9]
[399902579,1766838651488,-500.0,0.00035616,9]
[399902580,1766838651498,-476.77336343,0.00035616,9]
[399902581,1766838651508,-277.56592758,0.00035616,9]
[399902582,1766838651517,-500.0,0.00035616,9]
[399902583,1766838651527,-500.0,0.00035616,9]
[399902584,1766838651537,-500.0,0.00035616,9]
[399902585,1766838651546,-415.00048734,0.00035616,9]
[399902586,1766838651556,-500.0,0.00035616,9]
[399902587,1766838651566,-500.0,0.00035616,9]
[399902588,1766838651575,-400.0,0.00035616,9]
[399902589,1766838651585,-500.0,0.00035616,9]
[399902590,1766838651594,-500.0,0.00035616,9]
[399902591,1766838651604,-500.0,0.00035616,9]
[399902592,1766838651613,-500.0,0.00035616,9]
[399902593,1766838651623,-500.0,0.00035616,9]
[399902594,1766838651632,-400.0,0.00035616,9]
[399902595,1766838651642,-500.0,0.00035616,9]
[399902596,1766838651652,-500.0,0.00035616,9]
[399902597,1766838651661,-500.0,0.00035616,9]
[399902598,1766838651671,-500.0,0.00035616,9]
[399902599,1766838651680,-256.65124121,0.00035616,9]
[399902600,1766838651690,-428.62953925,0.00035616,9]
[399902601,1766838651700,-445.66040767,0.00035616,9]
[399902602,1766838651710,-475.11,0.00035616,9]
[399902603,1766838651719,-500.0,0.00035616,9]
[399902604,1766838651729,-180.19,0.00035616,9]
[399902605,1766838651739,-500.0,0.00035616,9]
[399902606,1766838651749,-500.0,0.00035616,9]
[399902607,1766838651758,-500.0,0.00035616,9]
[399902608,1766838651767,-151.0,0.00035616,31]
[399902609,1766838651778,-493.25,0.000357,14]
[399902610,1766838651788,-1809.81,0.000357,2]
[399902611,1766838651797,-300.0,0.00035879,10]
[399902612,1766838651807,-332.0179125,0.0003589,9]
[399902613,1766838651818,-225.74,0.0003589,9]
[399902614,1766838651828,-371.0877596,0.0003589,9]
[399902615,1766838651839,-316.29355109,0.0003589,9]
[399902616,1766838651848,-315.54381713,0.0003589,9]
[399902617,1766838651858,-319.43121522,0.0003589,9]
[399902618,1766838651867,-332.36712289,0.0003589,9]
[399902619,1766838651877,-300.0,0.0003589,9]
[399902620,1766838651886,-300.0,0.0003589,9]
[399902621,1766838651896,-349.63519561,0.0003589,9]
[399902622,1766838651905,-338.11416674,0.0003589,9]
[399902623,1766838651915,-220.73604478,0.0003589,9]
[399902624,1766838651942,-279.26395522,0.0003589,9]
[399902625,1766838651951,-102.97332697,0.0003589,9]
[399902626,1766838652003,-459.58986104,0.00035616,9]
[399902627,1766838652015,-40.41013896,0.00035616,9]
[399902628,1766838652025,-500.0,0.00035616,9]
[399902629,1766838652034,-258.65452807,0.0003589,9]
[399902630,1766838652044,-323.36062548,0.0003589,9]
[399902631,1766838652053,-336.17256563,0.0003589,9]
[399902632,1766838652062,-320.63855387,0.0003589,9]
[399902633,1766838652072,-328.22907538,0.0003589,9]
[399902634,1766838652082,-307.39872578,0.0003589,9]
[399902635,1766838652092,-75.34292961,0.0003589,9]
[399902636,1766838652104,-273.93710488,0.0003589,9]
[399902637,1766838652114,-347.46873686,0.0003589,9]
[399902638,1766838652125,-33.98803146,0.0003589,9]
[399902639,1766838652144,-466.01196854,0.0003589,9]
[399902640,1766838652154,-307.52412356,0.0003589,9]
[399902641,1766838652166,-304.23006456,0.0003589,9]
[399902642,1766838652176,-125.35394652,0.0003589,9]
[399902643,1766838652191,-500.0,0.00035616,9]
[399902644,1766838652203,-374.64605348,0.0003589,9]
[399902645,1766838652213,-300.0,0.0003589,9]
[399902646,1766838652224,-315.02805791,0.0003589,9]
[399902647,1766838652234,-500.0,0.0003589,9]
[399902648,1766838652244,-179.49081657,0.0003589,9]
[399902649,1766838666312,200.0,0.00021584,120]
[399902651,1766838702695,-655.0693,0.00014421,2]
[399902652,1766838702721,-500.0,0.0001452,2]
[399902653,1766838702747,-259.72734619,0.0001452,2]
[399902654,1766838702779,-500.0,0.0001452,2]
[399902655,1766838702806,-500.0,0.0001452,2]
[399902656,1766838702833,-500.0,0.0001452,2]
[399902657,1766838702861,-300.0,0.0001452,2]
[399902658,1766838702886,-196.55503778,0.0001452,2]
[399902659,1766838703052,-500.0,0.0001452,2]
[399902660,1766838703086,-500.0,0.0001452,2]
[399902661,1766838703115,-500.0,0.0001452,2]
[399902662,1766838703145,-388.64831603,0.0001452,2]
[399902671,1766838873977,829.2,0.00028223,120]
[399902701,1766839734008,-169.25902947,0.0001422,2]
[399902702,1766839741241,80.74097053,0.0001422,2]
[399902712,1766839831401,-300.0,0.00014135,2]
[399902713,1766839831412,-122.80423726,0.00014135,2]
[399902714,1766839831456,-1077.19576274,0.00014135,2]
[399902715,1766839831467,-300.0,0.00014135,2]
[399902716,1766839831477,-15420.05572577,0.00014136,2]
[399902717,1766839831487,-3947.72,0.00014211,2]
[399902718,1766839831497,-3947.72,0.00014211,2]
[399902719,1766839831512,-3947.72,0.00014211,2]
[399902720,1766839831523,-3947.72,0.00014211,2]
[399902721,1766839831533,-3947.72,0.00014211,2]
[399902722,1766839831544,-84834.14270578,0.00014221,2]
[399902723,1766839831557,-622.55672686,0.00014221,2]
[399902724,1766839831573,-24788.54228977,0.00014221,2]
[399902725,1766839831586,-254.72572641,0.00014221,2]
[399902726,1766839831598,-328.37400001,0.00014221,2]
[399902727,1766839831611,-287.06431718,0.00014221,2]
[399902728,1766839831625,-3513.22526362,0.00014221,2]
[399902750,1766839837494,-358.33485164,0.00014221,2]
[399902751,1766839837506,-1221.26746359,0.00014221,2]
[399902752,1766839837526,-254.18043806,0.00014221,2]
[399902753,1766839837545,-2615.92995068,0.00014221,2]
[399902754,1766839837597,-880921.6562664,0.00014221,2]
[399902755,1766839837608,-203.83328898,0.00014236,2]
[399902756,1766839837619,-250.0,0.00014236,2]
[399902757,1766839837630,-354.59337408,0.0001428,2]
[399902758,1766839837642,-1200.0,0.00014319,2]
[399902759,1766839837652,-203.83328898,0.0001432,2]
[399902760,1766839837662,-300.0,0.0001432,2]
[399902761,1766839837672,-2500.0,0.00014321,2]
[399902762,1766839837683,-457.27654245,0.00014321,2]
[399902763,1766839837693,-1107.614,0.00014321,2]
[399902764,1766839837703,-169.25902947,0.00014321,2]
[399902765,1766839837713,-578.60342662,0.00014373,2]
[399902766,1766839837723,-500.0,0.00014373,2]
[399902767,1766839837735,-500.0,0.00014373,2]
[399902768,1766839837745,-501.7326664,0.00014373,2]
[399902769,1766839837756,-500.0,0.00014373,2]
[399902770,1766839837766,-500.0,0.00014373,2]
[399902771,1766839837776,-500.0,0.00014373,2]
[399902772,1766839837787,-500.37770798,0.00014373,2]
[399902773,1766839837797,-500.0,0.00014373,2]
[399902774,1766839837809,-174.90741836,0.00014373,2]
[399902775,1766839837820,-164.98467545,0.00014373,2]
[399902777,1766839837831,-500.0,0.00014373,2]
[399902779,1766839837841,-157.11663709,0.00014373,2]
[399902782,1766839837853,-500.0,0.00014373,2]
[399902784,1766839837863,-500.0,0.00014373,2]
[399902786,1766839837873,-322.88246699,0.00014373,2]
[399902788,1766839837884,-163.00458877,0.00014373,2]
[399902789,1766839837894,-162.17692643,0.00014373,2]
[399902790,1766839837905,-199.0164919,0.0001442,2]
[399902791,1766839837916,-500.0,0.0001442,2]
[399902792,1766839837926,-500.0,0.0001442,2]
[399902793,1766839837937,-549.28991291,0.0001442,2]
[399902794,1766839837947,-500.0,0.0001442,2]
[399902795,1766839837958,-169.39766878,0.0001442,2]
[399902796,1766839837968,-210.44168266,0.0001442,2]
[399902797,1766839837979,-3240.0,0.00014699,2]
[399902798,1766839837990,-168.84175508,0.00014921,2]
[399902799,1766839838001,-500.0,0.00014921,2]
[399902800,1766839838012,-211.79,0.00015359,2]
[399902801,1766839838023,-150.0,0.00015409,2]
[399902802,1766839838033,-500.0,0.00015409,2]
[399902803,1766839838044,-157.37598018,0.00015409,2]
[399902804,1766839838055,-500.0,0.00015409,2]
[399902805,1766839838066,-150.0,0.00015409,2]
[399902806,1766839838077,-500.0,0.00015409,2]
[399902807,1766839838088,-500.0,0.00015409,2]
[399902808,1766839838099,-150.0,0.00015409,2]
[399902809,1766839838110,-150.0,0.00015409,2]
[399902810,1766839838120,-500.0,0.00015409,2]
[399902811,1766839838131,-500.0,0.00015409,2]
[399902812,1766839838141,-150.0,0.00015436,2]
[399902813,1766839838152,-500.0,0.00015436,2]
[399902814,1766839838162,-500.0,0.00015436,2]
[399902815,1766839838173,-150.0,0.00015436,2]
[399902816,1766839838183,-500.0,0.00015436,2]
[399902817,1766839838194,-500.0,0.00015436,2]
[399902818,1766839838204,-500.0,0.00015436,2]
[399902819,1766839838215,-200.0,0.00015464,2]
[399902820,1766839838226,-500.0,0.00015464,2]
[399902821,1766839838237,-506.58520274,0.00015464,2]
[399902822,1766839838248,-150.0,0.00015464,2]
[399902823,1766839838258,-500.0,0.00015464,2]
[399902824,1766839838269,-500.0,0.00015464,2]
[399902825,1766839838280,-500.0,0.00015464,2]
[399902826,1766839838290,-420.0,0.00015484,2]
[399902827,1766839838301,-420.0,0.00015484,2]
[399902828,1766839838312,-500.0,0.00015491,2]
[399902829,1766839838322,-200.0,0.00015491,2]
[399902830,1766839838333,-500.0,0.00015491,2]
[399902831,1766839838344,-500.0,0.00015491,2]
[399902832,1766839838354,-500.0,0.00015491,2]
[399902833,1766839838365,-578.96689898,0.00015519,2]
[399902834,1766839838375,-500.0,0.00015519,2]
[399902835,1766839838386,-466.07661958,0.00015519,2]
[399902836,1766839838397,-500.0,0.00015546,2]
[399902837,1766839838408,-1680.0,0.00015548,2]
[399902838,1766839838419,-300.0,0.0001555,2]
[399902839,1766839838430,-500.0,0.00015573,2]
[399902840,1766839838440,-500.0,0.00015601,2]
[399902841,1766839838451,-500.0,0.00015628,2]
[399902842,1766839838461,-193.0,0.00015642,2]
[399902843,1766839838472,-250.0,0.00015642,2]
[399902844,1766839838482,-300.0,0.00015642,2]
[399902845,1766839838493,-300.0,0.00015642,2]
[399902846,1766839838504,-500.0,0.00015656,2]
[399902847,1766839838515,-500.0,0.00015683,2]
[399902848,1766839838526,-500.0,0.00015683,2]
[399902849,1766839838536,-203.25840165,0.0001571,2]
[399902850,1766839838547,-343.04,0.00015844,2]
[399902851,1766839838558,-250.42,0.00016021,2]
[399902852,1766839838572,-5131.51,0.00016171,2]
[399902853,1766839838583,-500.0,0.00016171,2]
[399902854,1766839838594,-150.0,0.00016171,2]
[399902855,1766839838604,-500.0,0.00016171,2]
[399902856,1766839838615,-500.0,0.00016171,2]
[399902857,1766839838626,-695.0,0.00016171,2]
[399902858,1766839838637,-500.0,0.00016171,2]
[399902859,1766839838647,-500.0,0.00016171,2]
[399902860,1766839838658,-500.0,0.00016198,2]
[399902861,1766839838668,-150.0,0.00016198,2]
[399902862,1766839838679,-500.0,0.00016198,2]
[399902863,1766839838690,-500.0,0.00016198,2]
[399902864,1766839838701,-695.0,0.00016198,2]
[399902865,1766839838711,-500.0,0.00016198,2]
[399902866,1766839838722,-500.0,0.00016198,2]
[399902867,1766839838733,-500.0,0.00016226,2]
[399902868,1766839838743,-161.77130644,0.00016226,2]
[399902869,1766839838754,-500.0,0.00016226,2]
[399902870,1766839838765,-695.0,0.00016226,2]
[399902871,1766839838776,-500.0,0.00016226,2]
[399902872,1766839838786,-500.0,0.00016226,2]
[399902873,1766839838797,-500.0,0.00016253,2]
[399902874,1766839838808,-252.2515866,0.00016253,2]
[399902875,1766839838818,-695.0,0.00016253,2]
[399902876,1766839838829,-500.0,0.00016253,2]
[399902877,1766839838840,-500.0,0.00016253,2]
[399902878,1766839838851,-500.0,0.00016281,2]
[399902879,1766839838862,-695.0,0.00016281,2]
[399902880,1766839838872,-500.0,0.00016281,2]
[399902881,1766839838883,-264.67458914,0.00016281,2]
[399902882,1766839838893,-500.0,0.00016308,2]
[399902883,1766839838904,-695.0,0.00016308,2]
[399902884,1766839838915,-500.0,0.00016308,2]
[399902885,1766839838926,-500.0,0.00016335,2]
[399902886,1766839838937,-695.0,0.00016335,2]
[399902887,1766839838948,-500.0,0.00016335,2]
[399902888,1766839838959,-500.0,0.00016363,2]
[399902889,1766839838971,-695.0,0.00016363,2]
[399902890,1766839838982,-500.0,0.00016363,2]
[399902891,1766839838994,-500.0,0.0001639,2]
[399902892,1766839839005,-695.0,0.0001639,2]
[399902893,1766839839016,-500.0,0.00016418,2]
[399902894,1766839839028,-695.0,0.00016418,2]
[399902895,1766839839039,-695.0,0.00016445,2]
[399902896,1766839839050,-695.0,0.00016472,2]
[399902897,1766839839061,-150.0,0.00016493,2]
[399902898,1766839839073,-695.0,0.000165,2]
[399902899,1766839839084,-695.0,0.00016527,2]
[399902900,1766839839095,-695.0,0.00016555,2]
[399902901,1766839839106,-695.0,0.00016582,2]
[399902902,1766839839116,-695.0,0.00016609,2]
[399902903,1766839839127,-695.0,0.00016637,2]
[399902904,1766839839138,-695.0,0.00016664,2]
[399902905,1766839839149,-695.0,0.00016692,2]
[399902906,1766839839159,-163.74,0.00016712,2]
[399902907,1766839839170,-695.0,0.00016719,2]
[399902908,1766839839180,-695.0,0.00016746,2]
[399902909,1766839839190,-4970.00729905,0.00016767,2]
[399902910,1766839839202,-695.0,0.00016774,2]
[399902911,1766839839212,-695.0,0.00016801,2]
[399902912,1766839839223,-15420.05572577,0.00016888,2]
[399902913,1766839839234,-587.0,0.00016961,2]
[399902914,1766839839245,-394.0,0.00016961,2]
[399902915,1766839839256,-163.96941322,0.00016962,2]
[399902916,1766839839266,-150.0,0.00016962,2]
[399902917,1766839839277,-150.0,0.00016962,2]
[399902918,1766839839289,-500.0,0.00016962,2]
[399902919,1766839839300,-150.0,0.00016989,2]
[399902920,1766839839310,-150.0,0.00016989,2]
[399902921,1766839839320,-500.50413515,0.00016989,2]
[399902922,1766839839332,-250.0,0.00017,2]
[399902923,1766839839343,-200.0,0.00017017,2]
[399902924,1766839839355,-200.0,0.00017017,2]
[399902925,1766839839366,-1151.0,0.00017103,2]
[399902926,1766839839378,-150.0,0.00017558,2]
[399902927,1766839839390,-150.0,0.00017585,2]
[399902942,1766839839660,-164.91531166,0.00017613,2]
[399902944,1766839839671,-200.0,0.00018347,2]
[399902946,1766839839681,-457.27654245,0.00018418,2]
[399902948,1766839839691,-823.0,0.00018579,2]
[399902949,1766839839702,-1176.14250493,0.00019,2]
[399902950,1766839839712,-300.0,0.00019,2]
[399902951,1766839839723,-1000.0,0.00019483,2]
[399902952,1766839839733,-15420.05572577,0.00019639,2]
[399902953,1766839839743,-154.6,0.00019997,2]
[399902954,1766839839753,-246.0,0.00020351,2]
[399902955,1766839839763,-192.47,0.00020548,2]
[399902956,1766839839772,-154.6,0.00021725,2]
[399902957,1766839839783,-500.0,0.00021918,2]
[399902958,1766839839792,-615.43392194,0.00021918,2]
[399902959,1766839839802,-343.04,0.00022182,2]
[399902960,1766839839812,-15420.05572577,0.00022391,2]
[399902961,1766839839822,-457.27654245,0.00022514,2]
[399902962,1766839839832,-211.79,0.00023039,2]
[399902963,1766839839841,-154.6,0.00023452,2]
[399902964,1766839839851,-299.99,0.00024174,7]
[399902965,1766839839861,-999.99,0.00024174,2]
[399902966,1766839839870,-150.99,0.00024174,2]
[399902967,1766839839880,-150.99,0.00024174,2]
[399902968,1766839839890,-9999.99,0.00024174,2]
[399902969,1766839839900,-3680.43,0.00024174,2]
[399902970,1766839839909,-197.56929563,0.0002479,2]
[399902971,1766839839920,-179893.813533,0.000248,3]
[399902972,1766839839930,-15420.05572577,0.00025142,2]
[399902973,1766839839940,-154.6,0.0002518,2]
[399902974,1766839839950,-1659.56,0.00025547,2]
[399902975,1766839839960,-457.27654245,0.00026611,2]
[399902976,1766839839969,-154.6,0.00026907,2]
[399902977,1766839839979,-150.0,0.00027544,2]
[399902978,1766839839988,-4305.33,0.0002755,2]
[399902979,1766839839998,-19393.81,0.0002762,2]
[399902980,1766839840009,-1000.0,0.00027686,2]
[399902981,1766839840019,-15420.05572577,0.00027894,2]
[399902982,1766839840028,-300.0,0.00028508,2]
[399902983,1766839840039,-500.0,0.00028575,2]
[399902984,1766839840050,-154.6,0.00028635,2]
[399902985,1766839840059,-164.7117693,0.00029071,2]
[399902986,1766839840069,-2807.5681384,0.00029071,2]
[399902988,1766839840079,-962.6545526,0.00029071,2]
[399902990,1766839840088,-9884.8905164,0.00029071,2]
[399902991,1766839840098,-1000.0,0.000293,2]
[399902992,1766839840109,-2746.0,0.00029707,5]
[399902993,1766839840118,-154.6,0.00030362,2]
[399902994,1766839840128,-5000.0,0.00030524,2]
[399902995,1766839840137,-15420.05572577,0.00030645,2]
[399902996,1766839840147,-457.27654245,0.00030707,2]
[399902997,1766839840157,-829.2,0.00031751,120]
[399902998,1766839840167,-154.6,0.0003209,3]
[399902999,1766839840176,-2205.6172039,0.00032753,2]
[399903000,1766839840186,-1000.0,0.00033,2]
[399903001,1766839840196,-174.19,0.00033,14]
[399903002,1766839840206,-15420.05572577,0.00033397,2]
[399903003,1766839840217,-492.1397199,0.00033574,2]
[399903004,1766839840227,-154.6,0.00033817,3]
[399903005,1766839840237,-438.44,0.000339,14]
[399903006,1766839840247,-457.27654245,0.00034804,2]
[399903007,1766839840257,-1500.0,0.00035,2]
[399903008,1766839840267,-1500.0,0.00035,2]
[399903009,1766839840283,-500.0,0.00035057,2]
[399903010,1766839840301,-829.2,0.00035279,120]
[399903011,1766839840311,-886.72,0.000355,5]
[399903012,1766839840320,-860.96,0.00035501,5]
[399903013,1766839840330,-871.41,0.00035503,5]
[399903014,1766839840340,-866.65,0.00035508,5]
[399903015,1766839840350,-10000.0,0.00035516,2]
[399903016,1766839840360,-857.99,0.00035519,5]
[399903017,1766839840371,-154.6,0.00035545,4]
[399903018,1766839840381,-872.57,0.00035547,5]
[399903019,1766839840391,-150.0,0.00035615,20]
[399903020,1766839840400,-877.45,0.00035616,5]
[399903021,1766839840410,-150.0,0.00035616,2]
[399903022,1766839840422,-580.780375,0.00035616,9]
[399903023,1766839840433,-438.767632,0.00035616,9]
[399903024,1766839840443,-397.523951,0.00035616,9]
[399903025,1766839840452,-500.0,0.00035616,9]
[399903026,1766839840462,-163.07286896,0.00035616,9]
[399903027,1766839840471,-199.0779331,0.00035616,9]
[399903028,1766839840481,-500.0,0.00035616,9]
[399903029,1766839840491,-500.0,0.00035616,9]
[399903030,1766839840500,-539.09000515,0.00035616,9]
[399903031,1766839840512,-312.7022948,0.00035616,9]
[399903032,1766839840521,-500.0,0.00035616,9]
[399903033,1766839840532,-500.0,0.00035616,9]
[399903034,1766839840541,-504.78712685,0.00035616,9]
[399903035,1766839840551,-500.0,0.00035616,9]
[399903036,1766839840560,-500.0,0.00035616,9]
[399903037,1766839840571,-500.0,0.00035616,9]
[399903038,1766839840583,-262.74785482,0.00035616,9]
[399903039,1766839840592,-553.14326247,0.00035616,9]
[399903040,1766839840602,-500.0,0.00035616,9]
[399903041,1766839840612,-500.0,0.00035616,9]
[399903042,1766839840622,-500.0,0.00035616,9]
[399903043,1766839840632,-417.51616477,0.00035616,9]
[399903044,1766839840641,-408.2814605,0.00035616,9]
[399903045,1766839840653,-517.66966104,0.00035616,9]
[399903046,1766839840662,-232.53112155,0.00035616,9]
[399903047,1766839840672,-449.6,0.00035616,9]
[399903048,1766839840682,-500.0,0.00035616,9]
[399903049,1766839840691,-500.0,0.00035616,9]
[399903050,1766839840701,-500.0,0.00035616,9]
[399903051,1766839840712,-500.0,0.00035616,9]
[399903052,1766839840721,-500.0,0.00035616,9]
[399903053,1766839840731,-500.0,0.00035616,9]
[399903054,1766839840741,-500.0,0.00035616,9]
[399903055,1766839840750,-500.0,0.00035616,9]
[399903056,1766839840761,-500.0,0.00035616,9]
[399903057,1766839840770,-500.0,0.00035616,9]
[399903058,1766839840780,-332.77793989,0.00035616,9]
[399903059,1766839840790,-564.10528895,0.00035616,9]
[399903060,1766839840800,-500.0,0.00035616,9]
[399903061,1766839840810,-301.28,0.00035616,9]
[399903062,1766839840819,-500.0,0.00035616,9]
[399903063,1766839840829,-500.0,0.00035616,9]
[399903064,1766839840838,-396.79874851,0.00035616,9]
[399903065,1766839840848,-500.0,0.00035616,9]
[399903066,1766839840858,-500.0,0.00035616,9]
[399903067,1766839840868,-622.55300032,0.00035616,9]
[399903068,1766839840878,-500.0,0.00035616,9]
[399903069,1766839840888,-500.0,0.00035616,9]
[399903070,1766839840898,-500.0,0.00035616,9]
[399903071,1766839840909,-500.0,0.00035616,9]
[399903072,1766839840919,-500.0,0.00035616,9]
[399903073,1766839840929,-500.0,0.00035616,9]